fUSD/lending_fUSD_20260511
["ID","MTS","AMOUNT","RATE_DAILY","PERIOD"]
[422034615,1778506243000,-2004.129,0.00021,2]
[422034606,1778506243000,-608.0,0.00020822,2]
[422034593,1778506243000,-159.11806041,0.0002,2]
[422034604,1778506243000,-1139.4,0.00020381,2]
[422034595,1778506243000,-1490.0,0.0002,2]
[422034603,1778506243000,-151.0,0.00020367,2]
[422034602,1778506243000,-5874.38909823,0.00020367,2]
[422034601,1778506243000,-10869.09764972,0.00020367,2]
[422034594,1778506243000,-728.0,0.0002,2]
[422034599,1778506243000,-214.82098671,0.0002007,2]
[422034600,1778506243000,-241.0,0.00020105,2]
[422034675,1778506244000,-176.0,0.00024,2]
[422034679,1778506244000,-344.09,0.00024174,2]
[422034677,1778506244000,-1382.25,0.00024174,2]
[422034678,1778506244000,-459.07,0.00024174,2]
[422034676,1778506244000,-385.0,0.00024,2]
[422034668,1778506244000,-624.0,0.00023747,2]
[422034674,1778506244000,-154.67308578,0.00024,2]
[422034670,1778506244000,-926.0,0.00023747,2]
[422034671,1778506244000,-176.0,0.00024,2]
[422034667,1778506244000,-6049.0,0.00023747,2]
[422034673,1778506244000,-1490.0,0.00024,2]
[422034681,1778506244000,-1139.4,0.00024324,2]
[422034696,1778506244000,-1138.0,0.000245,2]
[422034685,1778506244000,-150.0,0.00024476,2]
[422034682,1778506244000,-501.0,0.00024397,2]
[422034687,1778506244000,-1500.0,0.000245,2]
[422034684,1778506244000,-150.0,0.00024476,2]
[422034686,1778506244000,-242.0,0.00024476,2]
[422034683,1778506244000,-150.0,0.00024476,2]
[422034688,1778506244000,-1500.0,0.000245,2]
[422034689,1778506244000,-1500.0,0.000245,2]
[422034699,1778506244000,-250.0,0.00024529,2]
[422034690,1778506244000,-1500.0,0.000245,2]
[422034693,1778506244000,-1500.0,0.000245,2]
[422034692,1778506244000,-1500.0,0.000245,2]
[422034665,1778506244000,-10869.09764972,0.00023622,2]
[422034680,1778506244000,-3734.76,0.00024174,2]
[422034669,1778506244000,-1353.0,0.00023747,2]
[422034658,1778506244000,-1203.596986,0.00023157,2]
[422034666,1778506244000,-5874.38909823,0.00023622,2]
[422034646,1778506244000,-151.0,0.00022644,2]
[422034694,1778506244000,-1500.0,0.000245,2]
[422034645,1778506244000,-151.0,0.00022644,2]
[422034647,1778506244000,-150.0,0.00022745,2]
[422034649,1778506244000,-150.0,0.00022835,2]
[422034642,1778506244000,-300.0,0.00022478,2]
[422034640,1778506244000,-1139.4,0.00022353,2]
[422034639,1778506244000,-152.0,0.00022055,30]
[422034644,1778506244000,-101599.1964439,0.00022644,2]
[422034648,1778506244000,-185.85468374,0.00022783,2]
[422034641,1778506244000,-762.02,0.00022466,2]
[422034643,1778506244000,-491.0,0.00022531,2]
[422034672,1778506244000,-728.0,0.00024,2]
[422034650,1778506244000,-176.0,0.00023,2]
[422034662,1778506244000,-335.0,0.0002362,5]
[422034660,1778506244000,-7636.61527823,0.00023157,2]
[422034651,1778506244000,-728.0,0.00023,2]
[422034663,1778506244000,-151.0,0.00023622,2]
[422034659,1778506244000,-1203.596986,0.00023157,2]
[422034657,1778506244000,-1203.596986,0.00023157,2]
[422034656,1778506244000,-1203.596986,0.00023157,2]
[422034652,1778506244000,-1490.0,0.00023,2]
[422034653,1778506244000,-153.0,0.00023,2]
[422034655,1778506244000,-385.0,0.00023,2]
[422034661,1778506244000,-277.0,0.0002362,5]
[422034664,1778506244000,-151.0,0.00023622,2]
[422034654,1778506244000,-176.0,0.00023,2]
[422034691,1778506244000,-1500.0,0.000245,2]
[422034751,1778506244000,-202.626464,0.00024658,2]
[422034695,1778506244000,-1500.0,0.000245,2]
[422034725,1778506244000,-151.0,0.00024658,2]
[422034722,1778506244000,-151.0,0.00024658,2]
[422034727,1778506244000,-151.0,0.00024658,2]
[422034732,1778506244000,-151.0,0.00024658,2]
[422034730,1778506244000,-162.330251,0.00024658,2]
[422034738,1778506244000,-202.626464,0.00024658,2]
[422034734,1778506244000,-151.0,0.00024658,2]
[422034741,1778506244000,-202.626464,0.00024658,2]
[422034736,1778506244000,-151.0,0.00024658,2]
[422034740,1778506244000,-202.626464,0.00024658,2]
[422034735,1778506244000,-151.0,0.00024658,2]
[422034739,1778506244000,-202.626464,0.00024658,2]
[422034724,1778506244000,-151.0,0.00024658,2]
[422034742,1778506244000,-202.626464,0.00024658,2]
[422034744,1778506244000,-202.626464,0.00024658,2]
[422034746,1778506244000,-202.626464,0.00024658,2]
[422034755,1778506244000,-202.626464,0.00024658,2]
[422034753,1778506244000,-202.626464,0.00024658,2]
[422034745,1778506244000,-202.626464,0.00024658,2]
[422034754,1778506244000,-202.626464,0.00024658,2]
[422034747,1778506244000,-202.626464,0.00024658,2]
[422034748,1778506244000,-202.626464,0.00024658,2]
[422034749,1778506244000,-202.626464,0.00024658,2]
[422034750,1778506244000,-202.626464,0.00024658,2]
[422034752,1778506244000,-202.626464,0.00024658,2]
[422034698,1778506244000,-150.0,0.00024529,2]
[422034737,1778506244000,-151.0,0.00024658,2]
[422034731,1778506244000,-462.53,0.00024658,2]
[422034743,1778506244000,-202.626464,0.00024658,2]
[422034728,1778506244000,-151.0,0.00024658,2]
[422034729,1778506244000,-151.0,0.00024658,2]
[422034701,1778506244000,-1050.0,0.00024557,2]
[422034700,1778506244000,-1050.0,0.00024557,2]
[422034703,1778506244000,-1050.0,0.00024557,2]
[422034702,1778506244000,-1050.0,0.00024557,2]
[422034704,1778506244000,-1050.0,0.00024557,2]
[422034707,1778506244000,-1050.0,0.00024557,2]
[422034708,1778506244000,-1050.0,0.00024557,2]
[422034706,1778506244000,-1050.0,0.00024557,2]
[422034705,1778506244000,-1050.0,0.00024557,2]
[422034709,1778506244000,-554.0,0.00024557,2]
[422034710,1778506244000,-209.745422,0.00024557,2]
[422034713,1778506244000,-209.745414,0.00024557,2]
[422034697,1778506244000,-287.0,0.00024529,2]
[422034714,1778506244000,-150.0,0.00024557,2]
[422034712,1778506244000,-209.745422,0.00024557,2]
[422034733,1778506244000,-151.0,0.00024658,2]
[422034723,1778506244000,-151.0,0.00024658,2]
[422034718,1778506244000,-151.0,0.00024658,2]
[422034721,1778506244000,-151.0,0.00024658,2]
[422034720,1778506244000,-151.0,0.00024658,2]
[422034726,1778506244000,-151.0,0.00024658,2]
[422034711,1778506244000,-209.745422,0.00024557,2]
[422034719,1778506244000,-151.0,0.00024658,2]
[422034715,1778506244000,-150.0,0.00024658,2]
[422034717,1778506244000,-151.0,0.00024658,2]
[422034716,1778506244000,-1000.0,0.00024658,2]
[422034799,1778506245000,-1164.55,0.00026068,7]
[422034801,1778506245000,-157.09,0.00026091,7]
[422034792,1778506245000,-156.01,0.00026031,2]
[422034787,1778506245000,-285.992992,0.00025786,2]
[422034800,1778506245000,-1142.46,0.00026069,7]
[422034790,1778506245000,-151.0,0.00025786,2]
[422034786,1778506245000,-151.0,0.00025786,2]
[422034788,1778506245000,-151.0,0.00025786,2]
[422034789,1778506245000,-151.0,0.00025786,2]
[422034803,1778506245000,-1164.55,0.00026096,2]
[422034791,1778506245000,-157.09,0.00026031,2]
[422034794,1778506245000,-1142.46,0.00026041,2]
[422034805,1778506245000,-1164.55,0.00026124,2]
[422034793,1778506245000,-1164.55,0.0002604,2]
[422034795,1778506245000,-1203.596986,0.00026047,2]
[422034797,1778506245000,-1203.596986,0.00026047,2]
[422034798,1778506245000,-1203.596986,0.00026047,2]
[422034796,1778506245000,-1203.596986,0.00026047,2]
[422034804,1778506245000,-1142.46,0.00026097,2]
[422034813,1778506245000,-150.8722254,0.00026201,2]
[422034811,1778506245000,-1164.55,0.0002618,7]
[422034807,1778506245000,-157.09,0.00026151,30]
[422034809,1778506245000,-1164.55,0.00026152,7]
[422034808,1778506245000,-156.01,0.00026151,30]
[422034779,1778506245000,-350.0,0.00025653,2]
[422034802,1778506245000,-156.01,0.00026091,7]
[422034785,1778506245000,-3734.76,0.00025786,2]
[422034806,1778506245000,-1142.46,0.00026125,2]
[422034780,1778506245000,-501.0,0.00025661,3]
[422034756,1778506245000,-202.626464,0.00024658,2]
[422034760,1778506245000,-157.09,0.00024853,7]
[422034761,1778506245000,-237.82006357,0.000249,2]
[422034757,1778506245000,-202.626472,0.00024658,2]
[422034759,1778506245000,-157.09,0.00024658,2]
[422034762,1778506245000,-9999.99,0.0002498,2]
[422034765,1778506245000,-181.04682161,0.00025,2]
[422034758,1778506245000,-228.53,0.00024658,2]
[422034763,1778506245000,-11323.48,0.0002498,2]
[422034764,1778506245000,-11057.5,0.0002498,2]
[422034772,1778506245000,-250.0,0.00025105,2]
[422034766,1778506245000,-737.97982781,0.00025,2]
[422034784,1778506245000,-344.09,0.00025786,2]
[422034773,1778506245000,-22669.8449734,0.00025183,2]
[422034777,1778506245000,-152.56538,0.00025278,2]
[422034768,1778506245000,-179.57272464,0.00025,2]
[422034769,1778506245000,-394.66669565,0.00025,2]
[422034774,1778506245000,-250.0,0.00025205,2]
[422034775,1778506245000,-157.09,0.00025244,2]
[422034770,1778506245000,-903.19656833,0.00025024,22]
[422034771,1778506245000,-157.09,0.00025049,30]
[422034776,1778506245000,-151.0,0.00025278,2]
[422034778,1778506245000,-1924.0,0.00025644,2]
[422034781,1778506245000,-350.0,0.00025753,2]
[422034782,1778506245000,-1382.25,0.00025786,2]
[422034783,1778506245000,-459.07,0.00025786,2]
[422034767,1778506245000,-1499.52471696,0.00025,2]
[422034810,1778506245000,-1142.46,0.00026153,7]
[422034844,1778506245000,-504.0,0.00026487,10]
[422034814,1778506245000,-1142.46,0.00026209,2]
[422034871,1778506245000,-7636.61527823,0.00027343,2]
[422034850,1778506245000,-1164.55,0.00026518,7]
[422034839,1778506245000,-1142.46,0.00026434,2]
[422034848,1778506245000,-1164.55,0.0002649,7]
[422034847,1778506245000,-1142.46,0.0002649,7]
[422034860,1778506245000,-926.0,0.00026747,2]
[422034862,1778506245000,-550.0,0.00026849,2]
[422034851,1778506245000,-1142.46,0.00026519,7]
[422034852,1778506245000,-1142.46,0.00026547,2]
[422034855,1778506245000,-157.1,0.00026575,2]
[422034854,1778506245000,-1142.49,0.00026575,7]
[422034857,1778506245000,-4448.238,0.00026747,2]
[422034853,1778506245000,-1164.55,0.00026547,2]
[422034856,1778506245000,-1164.59,0.00026575,7]
[422034861,1778506245000,-151.0,0.00026747,2]
[422034858,1778506245000,-624.0,0.00026747,2]
[422034859,1778506245000,-1353.0,0.00026747,2]
[422034864,1778506245000,-5874.38909823,0.00026878,2]
[422034866,1778506245000,-500.0,0.00027054,2]
[422034867,1778506245000,-737.0,0.000271,2]
[422034865,1778506245000,-501.0,0.00026925,4]
[422034863,1778506245000,-10869.09764972,0.00026878,2]
[422034870,1778506245000,-1000.0,0.000272,2]
[422034869,1778506245000,-732.0,0.000272,2]
[422034812,1778506245000,-1142.46,0.00026181,7]
[422034841,1778506245000,-157.09,0.00026454,7]
[422034843,1778506245000,-1164.55,0.00026462,2]
[422034868,1778506245000,-441.0,0.000272,2]
[422034846,1778506245000,-561.0,0.00026487,10]
[422034849,1778506245000,-157.09,0.00026514,30]
[422034815,1778506245000,-1164.55,0.00026209,2]
[422034817,1778506245000,-1142.46,0.00026237,7]
[422034816,1778506245000,-157.09,0.00026212,2]
[422034819,1778506245000,-1142.46,0.00026265,2]
[422034820,1778506245000,-1164.55,0.00026265,2]
[422034823,1778506245000,-1142.46,0.00026294,2]
[422034818,1778506245000,-1164.55,0.00026237,7]
[422034826,1778506245000,-1164.55,0.00026321,7]
[422034822,1778506245000,-1164.55,0.00026293,2]
[422034824,1778506245000,-1139.4,0.00026296,2]
[422034825,1778506245000,-450.0,0.00026301,2]
[422034828,1778506245000,-157.09,0.00026333,30]
[422034821,1778506245000,-157.09,0.00026272,7]
[422034833,1778506245000,-1164.55,0.00026378,2]
[422034827,1778506245000,-1142.46,0.00026322,7]
[422034838,1778506245000,-425.70802277,0.00026432,2]
[422034834,1778506245000,-200.0,0.0002639,20]
[422034835,1778506245000,-157.09,0.00026393,2]
[422034830,1778506245000,-1142.46,0.0002635,7]
[422034840,1778506245000,-1164.55,0.00026434,2]
[422034837,1778506245000,-1164.55,0.00026406,7]
[422034832,1778506245000,-1142.46,0.00026378,2]
[422034829,1778506245000,-1164.55,0.00026349,7]
[422034836,1778506245000,-1142.46,0.00026406,7]
[422034831,1778506245000,-168.49,0.00026366,2]
[422034842,1778506245000,-1142.46,0.00026462,2]
[422034905,1778506246000,-500.0,0.00027397,2]
[422034897,1778506246000,-500.0,0.00027397,2]
[422034907,1778506246000,-500.0,0.00027397,2]
[422034902,1778506246000,-500.0,0.00027397,2]
[422034903,1778506246000,-500.0,0.00027397,2]
[422034901,1778506246000,-500.0,0.00027397,2]
[422034899,1778506246000,-500.0,0.00027397,2]
[422034900,1778506246000,-500.0,0.00027397,2]
[422034898,1778506246000,-500.0,0.00027397,2]
[422034904,1778506246000,-500.0,0.00027397,2]
[422034915,1778506246000,-151.0,0.00027397,2]
[422034916,1778506246000,-462.53,0.00027397,2]
[422034906,1778506246000,-500.0,0.00027397,2]
[422034908,1778506246000,-500.0,0.00027397,2]
[422034912,1778506246000,-526.07,0.00027397,2]
[422034909,1778506246000,-558.59937566,0.00027397,2]
[422034911,1778506246000,-661.22043059,0.00027397,5]
[422034914,1778506246000,-151.0,0.00027397,2]
[422034896,1778506246000,-500.0,0.00027397,2]
[422034910,1778506246000,-1500.0,0.00027397,2]
[422034917,1778506246000,-151.0,0.00027397,2]
[422034894,1778506246000,-500.0,0.00027397,2]
[422034884,1778506246000,-1203.596986,0.00027397,2]
[422034892,1778506246000,-500.0,0.00027397,2]
[422034913,1778506246000,-151.0,0.00027397,2]
[422034872,1778506246000,-152.0,0.00027356,2]
[422034873,1778506246000,-152.0,0.00027356,2]
[422034874,1778506246000,-152.0,0.00027356,2]
[422034875,1778506246000,-151.0,0.00027356,2]
[422034879,1778506246000,-151.0,0.00027397,2]
[422034877,1778506246000,-289.4969013,0.00027356,2]
[422034878,1778506246000,-151.0,0.00027394,7]
[422034876,1778506246000,-174.61919141,0.00027356,2]
[422034882,1778506246000,-1203.596986,0.00027397,2]
[422034880,1778506246000,-151.0,0.00027397,2]
[422034881,1778506246000,-151.0,0.00027397,2]
[422034883,1778506246000,-1203.596986,0.00027397,2]
[422034886,1778506246000,-500.0,0.00027397,2]
[422034885,1778506246000,-1203.596991,0.00027397,2]
[422034889,1778506246000,-500.0,0.00027397,2]
[422034888,1778506246000,-500.0,0.00027397,2]
[422034891,1778506246000,-500.0,0.00027397,2]
[422034887,1778506246000,-500.0,0.00027397,2]
[422034890,1778506246000,-500.0,0.00027397,2]
[422034893,1778506246000,-504.40667338,0.00027397,2]
[422034895,1778506246000,-150.0,0.00027397,2]
[422034919,1778506246000,-151.0,0.00027397,2]
[422034931,1778506246000,-534.628791,0.00027397,2]
[422034973,1778506246000,-209.985657,0.00027397,2]
[422034950,1778506246000,-209.985657,0.00027397,2]
[422034952,1778506246000,-209.985657,0.00027397,2]
[422034953,1778506246000,-209.985657,0.00027397,2]
[422034958,1778506246000,-209.985657,0.00027397,2]
[422034967,1778506246000,-209.985657,0.00027397,2]
[422034964,1778506246000,-209.985657,0.00027397,2]
[422034962,1778506246000,-209.985657,0.00027397,2]
[422034976,1778506246000,-300.0,0.00027397,2]
[422034971,1778506246000,-209.985657,0.00027397,2]
[422034947,1778506246000,-209.985657,0.00027397,2]
[422034969,1778506246000,-209.985657,0.00027397,2]
[422034977,1778506246000,-2365.275513,0.00027397,2]
[422034975,1778506246000,-209.985663,0.00027397,2]
[422034974,1778506246000,-209.985657,0.00027397,2]
[422034982,1778506246000,-2365.275513,0.00027397,2]
[422034978,1778506246000,-2365.275513,0.00027397,2]
[422034979,1778506246000,-2365.275513,0.00027397,2]
[422034981,1778506246000,-2365.275513,0.00027397,2]
[422034980,1778506246000,-2365.275513,0.00027397,2]
[422034929,1778506246000,-534.628791,0.00027397,2]
[422034972,1778506246000,-209.985657,0.00027397,2]
[422034951,1778506246000,-209.985657,0.00027397,2]
[422034955,1778506246000,-209.985657,0.00027397,2]
[422034949,1778506246000,-209.985657,0.00027397,2]
[422034933,1778506246000,-534.628791,0.00027397,2]
[422034918,1778506246000,-151.0,0.00027397,2]
[422034921,1778506246000,-534.628791,0.00027397,2]
[422034927,1778506246000,-534.628791,0.00027397,2]
[422034920,1778506246000,-534.628791,0.00027397,2]
[422034923,1778506246000,-534.628791,0.00027397,2]
[422034948,1778506246000,-209.985657,0.00027397,2]
[422034925,1778506246000,-534.628791,0.00027397,2]
[422034934,1778506246000,-534.628791,0.00027397,2]
[422034936,1778506246000,-534.628791,0.00027397,2]
[422034937,1778506246000,-534.628791,0.00027397,2]
[422034922,1778506246000,-534.628791,0.00027397,2]
[422034939,1778506246000,-534.628791,0.00027397,2]
[422034938,1778506246000,-534.628791,0.00027397,2]
[422034935,1778506246000,-534.628791,0.00027397,2]
[422034944,1778506246000,-534.62879486,0.00027397,2]
[422034940,1778506246000,-534.628791,0.00027397,2]
[422034945,1778506246000,-209.985657,0.00027397,2]
[422034941,1778506246000,-534.628791,0.00027397,2]
[422034943,1778506246000,-534.628791,0.00027397,2]
[422034942,1778506246000,-534.628791,0.00027397,2]
[422034946,1778506246000,-209.985657,0.00027397,2]
[422035018,1778506247000,-245.85,0.000274,2]
[422035019,1778506247000,-245.85,0.000274,2]
[422035015,1778506247000,-239.606861,0.00027397,2]
[422035016,1778506247000,-239.606865,0.00027397,2]
[422035014,1778506247000,-239.606861,0.00027397,2]
[422035012,1778506247000,-239.606861,0.00027397,2]
[422035013,1778506247000,-239.606861,0.00027397,2]
[422035021,1778506247000,-245.85,0.000274,2]
[422035010,1778506247000,-239.606861,0.00027397,2]
[422035017,1778506247000,-2578.83,0.00027397,10]
[422035020,1778506247000,-245.85,0.000274,2]
[422035023,1778506247000,-1000.0,0.00027602,5]
[422035029,1778506247000,-658.0,0.00028,2]
[422035034,1778506247000,-225.255264,0.00028118,7]
[422035022,1778506247000,-245.85,0.000274,2]
[422035026,1778506247000,-658.0,0.00028,2]
[422035025,1778506247000,-181.08010149,0.00027904,2]
[422035024,1778506247000,-500.0,0.000278,7]
[422035028,1778506247000,-658.0,0.00028,2]
[422035032,1778506247000,-658.0,0.00028,2]
[422035027,1778506247000,-658.0,0.00028,2]
[422035030,1778506247000,-658.0,0.00028,2]
[422035031,1778506247000,-658.0,0.00028,2]
[422035011,1778506247000,-239.606861,0.00027397,2]
[422035033,1778506247000,-151.0,0.00028118,7]
[422035007,1778506247000,-239.606861,0.00027397,2]
[422034986,1778506247000,-2365.275513,0.00027397,2]
[422035009,1778506247000,-239.606861,0.00027397,2]
[422034984,1778506247000,-2365.275513,0.00027397,2]
[422034983,1778506247000,-2365.275513,0.00027397,2]
[422034985,1778506247000,-2365.275513,0.00027397,2]
[422034988,1778506247000,-2365.275513,0.00027397,2]
[422034987,1778506247000,-2365.275513,0.00027397,2]
[422034992,1778506247000,-2365.275513,0.00027397,2]
[422034990,1778506247000,-2365.275513,0.00027397,2]
[422034991,1778506247000,-2365.275513,0.00027397,2]
[422034989,1778506247000,-2365.275513,0.00027397,2]
[422034993,1778506247000,-2365.275513,0.00027397,2]
[422034994,1778506247000,-2365.275513,0.00027397,2]
[422034996,1778506247000,-2365.275514,0.00027397,2]
[422034997,1778506247000,-239.606861,0.00027397,2]
[422034998,1778506247000,-239.606861,0.00027397,2]
[422034995,1778506247000,-2365.275513,0.00027397,2]
[422034999,1778506247000,-239.606861,0.00027397,2]
[422035000,1778506247000,-239.606861,0.00027397,2]
[422035001,1778506247000,-239.606861,0.00027397,2]
[422035002,1778506247000,-239.606861,0.00027397,2]
[422035008,1778506247000,-239.606861,0.00027397,2]
[422035003,1778506247000,-239.606861,0.00027397,2]
[422035006,1778506247000,-239.606861,0.00027397,2]
[422035004,1778506247000,-239.606861,0.00027397,2]
[422035005,1778506247000,-239.606861,0.00027397,2]
[422035035,1778506247000,-1500.0,0.0002815,5]
[422035088,1778506247000,-350.0,0.00029115,2]
[422035042,1778506247000,-400.0,0.00028216,2]
[422035063,1778506247000,-575.757224,0.00028767,7]
[422035067,1778506247000,-575.757224,0.00028767,7]
[422035069,1778506247000,-575.757224,0.00028767,7]
[422035070,1778506247000,-575.757224,0.00028767,7]
[422035068,1778506247000,-575.757224,0.00028767,7]
[422035071,1778506247000,-575.757224,0.00028767,7]
[422035073,1778506247000,-575.757224,0.00028767,7]
[422035077,1778506247000,-575.757224,0.00028767,7]
[422035076,1778506247000,-575.757224,0.00028767,7]
[422035072,1778506247000,-575.757224,0.00028767,7]
[422035074,1778506247000,-575.757224,0.00028767,7]
[422035075,1778506247000,-575.757224,0.00028767,7]
[422035080,1778506247000,-575.757224,0.00028767,7]
[422035079,1778506247000,-575.757224,0.00028767,7]
[422035081,1778506247000,-575.75722,0.00028767,7]
[422035082,1778506247000,-180.09102489,0.00028919,2]
[422035085,1778506247000,-350.0,0.00029115,2]
[422035084,1778506247000,-350.0,0.00029115,2]
[422035086,1778506247000,-350.0,0.00029115,2]
[422035083,1778506247000,-350.0,0.00029115,2]
[422035087,1778506247000,-350.0,0.00029115,2]
[422035037,1778506247000,-501.0,0.00028188,5]
[422035089,1778506247000,-350.0,0.00029115,2]
[422035062,1778506247000,-575.757224,0.00028767,7]
[422035065,1778506247000,-575.757224,0.00028767,7]
[422035078,1778506247000,-575.757224,0.00028767,7]
[422035060,1778506247000,-243.638,0.00028604,20]
[422035038,1778506247000,-400.0,0.00028216,2]
[422035064,1778506247000,-575.757224,0.00028767,7]
[422035046,1778506247000,-459.0,0.00028216,2]
[422035043,1778506247000,-400.0,0.00028216,2]
[422035036,1778506247000,-173.0,0.00028186,2]
[422035040,1778506247000,-400.0,0.00028216,2]
[422035047,1778506247000,-300.0,0.0002822,2]
[422035044,1778506247000,-400.0,0.00028216,2]
[422035045,1778506247000,-400.0,0.00028216,2]
[422035056,1778506247000,-216.0,0.0002835,2]
[422035052,1778506247000,-300.0,0.0002822,2]
[422035051,1778506247000,-300.0,0.0002822,2]
[422035039,1778506247000,-400.0,0.00028216,2]
[422035061,1778506247000,-2000.0,0.00028698,5]
[422035066,1778506247000,-575.757224,0.00028767,7]
[422035048,1778506247000,-300.0,0.0002822,2]
[422035057,1778506247000,-304.31383176,0.00028452,2]
[422035050,1778506247000,-300.0,0.0002822,2]
[422035053,1778506247000,-300.0,0.0002822,2]
[422035054,1778506247000,-401.0,0.0002822,2]
[422035041,1778506247000,-400.0,0.00028216,2]
[422035058,1778506247000,-520.0,0.00028555,5]
[422035049,1778506247000,-300.0,0.0002822,2]
[422035055,1778506247000,-1139.4,0.00028267,2]
[422035059,1778506247000,-2641.327,0.00028604,20]
[422035127,1778506248000,-200.0,0.00030137,2]
[422035124,1778506248000,-10869.09764972,0.00030133,2]
[422035122,1778506248000,-200.0,0.0003,2]
[422035121,1778506248000,-511.0,0.0003,120]
[422035123,1778506248000,-1924.0,0.00030082,120]
[422035126,1778506248000,-462.53,0.00030137,2]
[422035125,1778506248000,-5874.38909823,0.00030133,2]
[422035138,1778506248000,-908.0,0.00030155,2]
[422035128,1778506248000,-208.28096076,0.00030137,2]
[422035119,1778506248000,-200.0,0.0003,2]
[422035120,1778506248000,-200.0,0.0003,2]
[422035140,1778506248000,-191.0,0.00030411,120]
[422035136,1778506248000,-1250.0,0.00030155,2]
[422035133,1778506248000,-1250.0,0.00030155,2]
[422035135,1778506248000,-1250.0,0.00030155,2]
[422035137,1778506248000,-1250.0,0.00030155,2]
[422035129,1778506248000,-1250.0,0.00030155,2]
[422035134,1778506248000,-1250.0,0.00030155,2]
[422035132,1778506248000,-1250.0,0.00030155,2]
[422035139,1778506248000,-1139.4,0.00030239,2]
[422035150,1778506248000,-385.0,0.00030538,30]
[422035141,1778506248000,-176.0,0.00030512,30]
[422035110,1778506248000,-1950.0,0.00029264,2]
[422035130,1778506248000,-1250.0,0.00030155,2]
[422035116,1778506248000,-1353.0,0.00029747,2]
[422035093,1778506248000,-500.0,0.00029165,2]
[422035107,1778506248000,-1950.0,0.00029264,2]
[422035142,1778506248000,-152.0,0.00030512,30]
[422035094,1778506248000,-500.0,0.00029165,2]
[422035091,1778506248000,-491.0,0.00029115,2]
[422035090,1778506248000,-350.0,0.00029115,2]
[422035092,1778506248000,-500.0,0.00029165,2]
[422035096,1778506248000,-500.0,0.00029165,2]
[422035106,1778506248000,-1950.0,0.00029264,2]
[422035098,1778506248000,-500.0,0.00029165,2]
[422035099,1778506248000,-500.0,0.00029165,2]
[422035102,1778506248000,-736.13219335,0.00029246,5]
[422035100,1778506248000,-500.0,0.00029165,2]
[422035095,1778506248000,-500.0,0.00029165,2]
[422035105,1778506248000,-1950.0,0.00029264,2]
[422035101,1778506248000,-169.0,0.00029165,2]
[422035097,1778506248000,-500.0,0.00029165,2]
[422035103,1778506248000,-1950.0,0.00029264,2]
[422035104,1778506248000,-1950.0,0.00029264,2]
[422035114,1778506248000,-1099.59,0.000295,2]
[422035112,1778506248000,-1797.0,0.00029264,2]
[422035113,1778506248000,-501.0,0.00029452,7]
[422035111,1778506248000,-1950.0,0.00029264,2]
[422035118,1778506248000,-1900.0,0.0003,2]
[422035108,1778506248000,-1950.0,0.00029264,2]
[422035109,1778506248000,-1950.0,0.00029264,2]
[422035117,1778506248000,-926.0,0.00029747,2]
[422035115,1778506248000,-599.785,0.00029747,2]
[422035148,1778506248000,-159.0,0.00030532,30]
[422035131,1778506248000,-1250.0,0.00030155,2]